lending/lending_fUSD_20260328
["ID","MTS","AMOUNT","RATE_DAILY","PERIOD"]
[419001530,1774734638201,-153.5112404,0.00013468,2]
[419001532,1774734638210,-500.0,0.00013473,2]
[419001533,1774734638220,-227.10594117,0.00013473,2]
[419001534,1774734638229,-501.12392041,0.00013473,2]
[419001535,1774734638239,-388.80205699,0.00013473,2]
[419001536,1774734638248,-500.0,0.00013473,2]
[419001537,1774734638258,-259.45,0.00013477,2]
[419001539,1774734638268,-2372.034,0.00013477,2]
[419001540,1774734638277,-177.037,0.00013477,2]
[419001541,1774734638286,-562.58885479,0.00013477,2]
[419001542,1774734638295,-500.0,0.00013477,2]
[419001543,1774734638304,-268.54181924,0.00013477,2]
[419001544,1774734638314,-186.1223328,0.00013477,2]
[419001545,1774734638324,-344.42742057,0.00013477,2]
[419001546,1774734638334,-500.0,0.00013477,2]
[419001547,1774734638344,-500.0,0.00013477,2]
[419001548,1774734638353,-649.18146765,0.00013477,2]
[419001549,1774734638363,-229.00541124,0.00013477,2]
[419001550,1774734638374,-301.2484728,0.00013477,2]
[419001552,1774734638383,-492.06022285,0.00013477,2]
[419001553,1774734638392,-24227.47609953,0.00013478,2]
[419001556,1774734638404,-273.62613258,0.00013478,2]
[419001558,1774734638419,-2475498.89776789,0.00013478,2]
[419001560,1774734638429,-839.2403,0.000135,2]
[419001562,1774734638439,-150.0,0.000135,2]
[419001564,1774734638449,-226.0,0.00013634,2]
[419001566,1774734638459,-501.14876687,0.00013673,2]
[419001568,1774734638468,-29148.17905211,0.00013678,2]
[419001570,1774734638477,-3972.1152928,0.00013678,2]
[419001572,1774734638487,-500.0,0.00013698,2]
[419001575,1774734638497,-500.0,0.00013698,2]
[419001577,1774734638506,-500.0,0.00013698,2]
[419001581,1774734638515,-500.0,0.00013698,2]
[419001583,1774734638524,-500.0,0.00013698,2]
[419001586,1774734638534,-500.0,0.00013698,2]
[419001590,1774734638543,-500.0,0.00013698,2]
[419001594,1774734638553,-196.90991446,0.00013698,2]
[419001596,1774734638562,-500.0,0.00013698,2]
[419001598,1774734638572,-500.0,0.00013698,2]
[419001599,1774734638581,-500.0,0.00013698,2]
[419001602,1774734638590,-291.70995289,0.00013698,2]
[419001604,1774734638599,-500.0,0.00013698,2]
[419001606,1774734638608,-500.0,0.00013698,2]
[419001608,1774734638617,-500.0,0.00013698,2]
[419001610,1774734638626,-500.0,0.00013698,2]
[419001611,1774734638635,-500.0,0.00013698,2]
[419001613,1774734638644,-500.0,0.00013698,2]
[419001615,1774734638654,-206.95112848,0.00013698,2]
[419001617,1774734638663,-500.0,0.00013698,2]
[419001620,1774734638672,-500.0,0.00013698,2]
[419001622,1774734638681,-500.0,0.00013698,2]
[419001624,1774734638691,-500.0,0.00013698,2]
[419001626,1774734638702,-500.0,0.00013698,2]
[419001628,1774734638711,-500.0,0.00013698,2]
[419001630,1774734638720,-500.0,0.00013698,2]
[419001632,1774734638730,-500.0,0.00013698,2]
[419001634,1774734638739,-500.0,0.00013698,2]
[419001636,1774734638747,-500.0,0.00013698,2]
[419001638,1774734638757,-500.0,0.00013698,2]
[419001640,1774734638766,-500.0,0.00013698,2]
[419001642,1774734638775,-500.0,0.00013698,2]
[419001644,1774734638783,-500.0,0.00013698,2]
[419001646,1774734638792,-500.0,0.00013698,2]
[419001648,1774734638801,-214.95038261,0.00013698,2]
[419001650,1774734638810,-223.51,0.00013699,2]
[419001652,1774734638819,-215.00588558,0.00013699,2]
[419001654,1774734638828,-162.64,0.000137,2]
[419001655,1774734638837,-780.35,0.000137,2]
[419001656,1774734638846,-7352.82,0.000137,2]
[419001657,1774734638855,-647.08,0.000137,2]
[419001658,1774734638864,-1062.42,0.000137,2]
[419001659,1774734638873,-447.19,0.000137,2]
[419001660,1774734638883,-166.59,0.00013733,2]
[419001661,1774734638892,-259.45,0.00013751,2]
[419001662,1774734638901,-226.8992007,0.000139,2]
[419001663,1774734638909,-2500.0,0.00013944,2]
[419001675,1774734639035,-2500.0,0.00013944,2]
[419001677,1774734639044,-2500.0,0.00013944,2]
[419001679,1774734639053,-2500.0,0.00013944,2]
[419001681,1774734639062,-2500.0,0.00013944,2]
[419001683,1774734639071,-500.0,0.00013955,2]
[419001685,1774734639081,-29148.17905211,0.00013956,2]
[419001687,1774734639090,-3972.1152928,0.00013956,2]
[419001689,1774734639099,-510.0,0.00014,2]
[419001691,1774734639108,-300.0,0.00014002,2]
[419001693,1774734639118,-152.73363091,0.00014002,2]
[419001695,1774734639127,-195.0,0.00014002,2]
[419001697,1774734639136,-600.0,0.00014002,2]
[419001699,1774734639145,-600.0,0.00014002,2]
[419001701,1774734639154,-600.0,0.00014002,2]
[419001703,1774734639164,-600.0,0.00014002,2]
[419001705,1774734639173,-600.0,0.00014002,2]
[419001707,1774734639183,-300.0,0.00014002,2]
[419001709,1774734639192,-300.0,0.00014002,2]
[419001711,1774734639201,-1000.0,0.00014021,2]
[419001714,1774734639211,-259.47,0.00014025,2]
[419001716,1774734639220,-158.99099106,0.00014025,2]
[419001718,1774734639228,-29148.17905211,0.00014233,2]
[419001720,1774734639238,-3972.1152928,0.00014233,2]
[419001722,1774734639247,-500.0,0.00014283,2]
[419001724,1774734639257,-500.0,0.00014283,2]
[419001726,1774734639265,-500.0,0.00014283,2]
[419001728,1774734639274,-500.0,0.00014283,2]
[419001730,1774734639284,-500.0,0.00014283,2]
[419001732,1774734639293,-250.0,0.00014283,2]
[419001734,1774734639302,-150.0,0.00014283,2]
[419001736,1774734639310,-204.62415439,0.00014283,2]
[419001738,1774734639319,-200.0,0.00014283,2]
[419001740,1774734639328,-200.0,0.00014283,2]
[419001742,1774734639337,-200.0,0.00014283,2]
[419001743,1774734639346,-200.0,0.00014283,2]
[419001745,1774734639355,-188.33448171,0.00014283,2]
[419001747,1774734639365,-1600.0,0.00014371,2]
[419001749,1774734639374,-223.51,0.00014384,2]
[419001752,1774734639384,-165.27,0.00014467,2]
[419001754,1774734639394,-255.0,0.00014511,2]
[419001755,1774734639405,-29148.17905211,0.00014511,2]
[419001756,1774734639415,-3972.1152928,0.00014511,2]
[419001757,1774734639424,-170.15833684,0.00014568,2]
[419001758,1774734639434,-1680.0,0.00014575,2]
[419001759,1774734639443,-158.99099106,0.0001465,2]
[419001760,1774734639453,-29148.17905211,0.00014789,2]
[419001761,1774734639462,-3972.1152928,0.00014789,2]
[419001762,1774734639471,-166.59,0.00014789,2]
[419001763,1774734639480,-5630.37221752,0.0001479,2]
[419001764,1774734639490,-250.0,0.00014982,2]
[419001765,1774734639499,-29148.17905211,0.00015067,2]
[419001766,1774734639509,-3972.1152928,0.00015067,2]
[419001767,1774734639519,-223.51,0.00015068,2]
[419001768,1774734639531,-296.29,0.00015068,2]
[419001769,1774734639542,-29148.17905211,0.00015344,2]
[419001770,1774734639551,-3972.1152928,0.00015344,2]
[419001771,1774734639560,-161.0,0.0001536,2]
[419001772,1774734639569,-959.64475997,0.00015442,2]
[419001773,1774734639580,-4722.0,0.00015485,2]
[419001774,1774734639592,-154.46961228,0.00015569,2]
[419001775,1774734639601,-500.0,0.00015621,2]
[419001776,1774734639610,-29148.17905211,0.00015622,2]
[419001777,1774734639621,-3972.1152928,0.00015622,2]
[419001778,1774734639631,-433.0,0.00015717,2]
[419001779,1774734639640,-223.51,0.00015753,2]
[419001780,1774734639649,-166.59,0.00015845,2]
[419001781,1774734639658,-29148.17905211,0.000159,2]
[419001782,1774734639668,-3972.1152928,0.000159,2]
[419001783,1774734639677,-1418.8102656,0.000159,2]
[419001784,1774734639686,-3818.32173057,0.0001596,2]
[419001785,1774734639695,-1600.0,0.00015968,2]
[419001786,1774734639704,-303.76947288,0.00015973,2]
[419001787,1774734639714,-500.0,0.00015973,2]
[419001788,1774734639727,-500.0,0.00015973,2]
[419001789,1774734639736,-500.0,0.00015973,2]
[419001790,1774734639748,-500.4848322,0.00015973,2]
[419001791,1774734639757,-500.0,0.00015973,2]
[419001792,1774734639768,-500.0,0.00015973,2]
[419001793,1774734639778,-500.0,0.00015973,2]
[419001794,1774734639788,-500.0,0.00015973,2]
[419001795,1774734639797,-500.0,0.00015973,2]
[419001796,1774734639808,-500.0,0.00015973,2]
[419001797,1774734639818,-500.0,0.00015973,2]
[419001798,1774734639828,-500.0,0.00015973,2]
[419001799,1774734639838,-507.33813259,0.00015973,2]
[419001800,1774734639849,-500.0,0.00015973,2]
[419001801,1774734639859,-500.0,0.00015973,2]
[419001802,1774734639868,-500.0,0.00015973,2]
[419001803,1774734639877,-500.0,0.00015973,2]
[419001804,1774734639886,-500.0,0.00015973,2]
[419001805,1774734639895,-500.92226367,0.00015973,2]
[419001806,1774734639905,-500.0,0.00015973,2]
[419001807,1774734639914,-500.0,0.00015973,2]
[419001808,1774734639924,-500.0,0.00015973,2]
[419001809,1774734639934,-4417.4981184,0.00015987,2]
[419001810,1774734639944,-13902.9191102,0.00015987,2]
[419001811,1774734639954,-19699.745054,0.00015987,2]
[419001812,1774734639964,-7537.6031544,0.00015987,2]
[419001813,1774734639975,-151.0,0.00015997,2]
[419001814,1774734639984,-671.40174411,0.00015999,2]
[419001815,1774734639993,-155.0,0.00015999,2]
[419001816,1774734640002,-158.69503174,0.00015999,2]
[419001817,1774734640012,-4889867.07364581,0.00016,2]
[419001818,1774734640021,-1066287.58444946,0.00016,2]
[419001822,1774734640167,-372.02,0.00016,2]
[419001823,1774734640292,-539.1742213,0.00016,2]
[419001824,1774734640303,-3165730.0509321,0.00016,2]
[419001831,1774734643561,-150.0,0.00014,2]
[419001832,1774734643572,-17103.0002236,0.00016,2]
[419001835,1774734645833,-322.8916,0.00016,2]
[419001836,1774734646129,-1197.9679,0.00016,2]
[419001837,1774734646286,-2913.12018298,0.00016,2]
[419001838,1774734646299,-22620.48902007,0.00016,2]
[419001839,1774734646312,-344.67636,0.00016,2]
[419001840,1774734646379,-1298.60426272,0.00016,2]
[419001841,1774734646393,-6273.09128847,0.00016,2]
[419001842,1774734646445,-3016.57165071,0.00016,2]
[419001843,1774734646510,-9559.21788676,0.00016,2]
[419001870,1774735687079,-388.77,0.000112,2]
[419001891,1774735832277,-166.66,0.00012186,2]
[419001892,1774735832287,-250.0,0.0001225,2]
[419001893,1774735832297,-195.0,0.00012314,2]
[419001894,1774735832307,-250.0,0.00012381,2]
[419001895,1774735832316,-150.0,0.00012389,2]
[419001896,1774735832326,-166.66,0.00012443,2]
[419001897,1774735832336,-2000.0,0.00012444,2]
[419001898,1774735832345,-195.0,0.0001252,2]
[419001899,1774735832354,-195.0,0.0001252,2]
[419001900,1774735832364,-195.0,0.0001252,2]
[419001901,1774735832374,-166.66,0.00012699,2]
[419001902,1774735832383,-500.0,0.00012773,2]
[419001903,1774735832393,-353.52089299,0.0001279,2]
[419001904,1774735832403,-1000.0,0.00012799,2]
[419001905,1774735832414,-1200.0,0.00012799,2]
[419001906,1774735832423,-103416.49910701,0.000128,2]
[419001907,1774735832436,-17000.0,0.000128,2]
[419001909,1774735832484,-90623.08610695,0.000128,2]
[419001911,1774735832639,-940.11642928,0.000128,2]
[419001912,1774735832653,-2086.21568691,0.000128,2]
[419001913,1774735838107,-150.0,0.000127,2]
[419001914,1774735838119,-282.58451,0.000128,2]
[419001915,1774735838132,-22353.76076004,0.000128,2]
[419001916,1774735838145,-2263297.73739981,0.000128,2]
[419001917,1774735838155,-1500.0,0.00012827,2]
[419001918,1774735838164,-500.0,0.00012828,2]
[419001919,1774735838174,-300.0,0.00012898,2]
[419001920,1774735838183,-150.0,0.00012899,2]
[419001921,1774735838193,-150.99,0.000129,2]
[419001922,1774735838202,-1792.87,0.000129,2]
[419001923,1774735838212,-7923.32,0.000129,2]
[419001924,1774735838221,-999.99,0.000129,2]
[419001925,1774735838231,-17134.21,0.000129,2]
[419001926,1774735838240,-226.0,0.00012947,2]
[419001927,1774735838250,-166.66,0.00012956,2]
[419001928,1774735838259,-250.0,0.00013,2]
[419001929,1774735838269,-2500.0,0.000132,2]
[419001930,1774735838278,-166.66,0.00013212,2]
[419001931,1774735838287,-560.36686363,0.00013228,2]
[419001932,1774735838297,-778.02521175,0.00013269,2]
[419001933,1774735838306,-499.89808899,0.00013269,2]
[419001934,1774735838315,-2170.08584158,0.00013269,2]
[419001935,1774735838325,-500.0,0.00013273,2]
[419001936,1774735838334,-500.35186235,0.00013273,2]
[419001937,1774735838344,-500.0,0.00013273,2]
[419001938,1774735838353,-500.50577839,0.00013273,2]
[419001939,1774735838362,-500.26796584,0.00013273,2]
[419001940,1774735838372,-500.0,0.00013273,2]
[419001941,1774735838382,-500.30534857,0.00013273,2]
[419001942,1774735838392,-429.59323127,0.00013273,2]
[419001943,1774735838401,-504.90098881,0.00013273,2]
[419001944,1774735838410,-151.0,0.00013297,2]
[419001945,1774735838420,-418.68748774,0.00013299,2]
[419001946,1774735838429,-500.0,0.00013299,2]
[419001947,1774735838438,-432.97398334,0.00013299,2]
[419001948,1774735838447,-2093.106,0.00013299,2]
[419001949,1774735838458,-173.419,0.00013299,2]
[419001950,1774735838467,-500.0,0.00013299,2]
[419001951,1774735838476,-414.05305605,0.00013299,2]
[419001952,1774735838486,-500.0,0.00013299,2]
[419001953,1774735838495,-500.0,0.00013299,2]
[419001954,1774735838505,-500.0,0.00013299,2]
[419001955,1774735838514,-500.0,0.00013299,2]
[419001956,1774735838523,-500.0,0.00013299,2]
[419001957,1774735838533,-500.0,0.00013299,2]
[419001958,1774735838543,-508.53566185,0.00013299,2]
[419001959,1774735838551,-500.0,0.00013299,2]
[419001960,1774735838561,-500.0,0.00013299,2]
[419001961,1774735838570,-500.0,0.00013299,2]
[419001962,1774735838580,-500.0,0.00013299,2]
[419001963,1774735838589,-500.0,0.00013299,2]
[419001964,1774735838598,-500.0,0.00013299,2]
[419001965,1774735838607,-500.0,0.00013299,2]
[419001967,1774735838617,-238.32276639,0.00013299,2]
[419001968,1774735838626,-1000.0,0.00013321,2]
[419001969,1774735838635,-195.0,0.00013405,2]
[419001970,1774735838645,-250.0,0.00013405,2]
[419001971,1774735838655,-5000.0,0.00013405,2]
[419001972,1774735838664,-166.66,0.00013469,2]
[419001973,1774735838673,-839.2403,0.000135,2]
[419001974,1774735838683,-2170.08584154,0.00013561,2]
[419001975,1774735838692,-778.02521169,0.00013574,2]
[419001977,1774735838702,-2000.0,0.00013629,2]
[419001978,1774735838711,-500.0,0.00013698,2]
[419001980,1774735838720,-500.0,0.00013698,2]
[419001981,1774735838729,-503.29550484,0.00013698,2]
[419001982,1774735838739,-543.79396145,0.00013698,2]
[419001983,1774735838748,-280.4257349,0.00013698,2]
[419001984,1774735838758,-500.0,0.00013698,2]
[419001985,1774735838767,-500.0,0.00013698,2]
[419001986,1774735838776,-500.0,0.00013698,2]
[419001987,1774735838785,-500.0,0.00013698,2]
[419001988,1774735838794,-500.0,0.00013698,2]
[419001989,1774735838804,-500.0,0.00013698,2]
[419001990,1774735838812,-500.0,0.00013698,2]
[419001991,1774735838822,-500.0,0.00013698,2]
[419001992,1774735838831,-500.0,0.00013698,2]
[419001993,1774735838841,-500.0,0.00013698,2]
[419001994,1774735838850,-500.0,0.00013698,2]
[419001995,1774735838860,-500.0,0.00013698,2]
[419001996,1774735838869,-500.0,0.00013698,2]
[419001997,1774735838878,-500.0,0.00013698,2]
[419001998,1774735838887,-500.0,0.00013698,2]
[419001999,1774735838897,-500.0,0.00013698,2]
[419002000,1774735838906,-500.0,0.00013698,2]
[419002001,1774735838915,-500.0,0.00013698,2]
[419002002,1774735838924,-500.0,0.00013698,2]
[419002003,1774735838933,-500.0,0.00013698,2]
[419002004,1774735838943,-500.0,0.00013698,2]
[419002005,1774735838952,-150.0,0.00013699,2]
[419002006,1774735838963,-370.96,0.00013699,2]
[419002007,1774735838972,-150.50411991,0.00013699,2]
[419002008,1774735838982,-162.64,0.000137,2]
[419002009,1774735838991,-608.82,0.000137,2]
[419002010,1774735839000,-582.37,0.000137,2]
[419002011,1774735839010,-6617.54,0.000137,2]
[419002012,1774735839019,-956.17,0.000137,2]
[419002013,1774735839029,-383.35,0.000137,2]
[419002014,1774735839038,-150.0,0.000137,2]
[419002015,1774735839047,-150.0,0.000137,2]
[419002016,1774735839056,-500.0,0.00013821,2]
[419002017,1774735839065,-2170.08584154,0.00013854,2]
[419002018,1774735839074,-200.0,0.00013864,2]
[419002019,1774735839087,-1098.58411617,0.00013868,2]
[419002020,1774735839100,-778.02521169,0.00013879,2]
[419002021,1774735839113,-235.30570928,0.00013899,2]
[419002022,1774735839128,-2344.91861912,0.00013899,2]
[419002023,1774735839141,-1479.6818734,0.00013899,2]
[419002024,1774735839155,-206.37595366,0.00013899,2]
[419002025,1774735839166,-500.0,0.00013973,2]
[419002026,1774735839177,-500.0,0.00013973,2]
[419002027,1774735839190,-500.0,0.00013973,2]
[419002028,1774735839204,-500.0,0.00013973,2]
[419002029,1774735839217,-500.0,0.00013973,2]
[419002030,1774735839231,-500.0,0.00013973,2]
[419002031,1774735839244,-500.42331564,0.00013973,2]
[419002032,1774735839256,-500.0,0.00013973,2]
[419002033,1774735839268,-500.0,0.00013973,2]
[419002034,1774735839280,-500.0,0.00013973,2]
[419002035,1774735839292,-500.0,0.00013973,2]
[419002036,1774735839303,-500.0,0.00013973,2]
[419002037,1774735839317,-500.0,0.00013989,2]
[419002038,1774735839331,-500.0,0.00013989,2]
[419002039,1774735839344,-99427.70921548,0.0001399,2]
[419002040,1774735839356,-2000.0,0.00014,2]
[419002041,1774735839367,-509.0,0.00014,2]
[419002042,1774735839381,-510.0,0.00014,2]
[419002043,1774735839393,-255.0,0.00014008,2]
[419002044,1774735839406,-1680.0,0.00014079,2]
[419002045,1774735839418,-411.79522807,0.00014115,2]
[419002046,1774735839430,-2170.08584154,0.00014146,2]
[419002047,1774735839441,-778.02521169,0.00014185,2]
[419002048,1774735839452,-500.0,0.00014313,2]
[419002049,1774735839462,-500.0,0.00014313,2]
[419002050,1774735839474,-500.0,0.00014313,2]
[419002051,1774735839488,-500.0,0.00014313,2]
[419002052,1774735839499,-500.0,0.00014313,2]
[419002053,1774735839512,-500.0,0.00014313,2]
[419002054,1774735839524,-500.0,0.00014313,2]
[419002055,1774735839537,-500.0,0.00014313,2]
[419002056,1774735839551,-500.0,0.00014313,2]
[419002057,1774735839564,-500.0,0.00014313,2]
[419002058,1774735839575,-500.0,0.00014313,2]
[419002059,1774735839586,-500.0,0.00014313,2]
[419002060,1774735839598,-500.0,0.00014313,2]
[419002061,1774735839610,-500.0,0.00014313,2]
[419002062,1774735839623,-500.0,0.00014313,2]
[419002063,1774735839636,-500.0,0.00014313,2]
[419002064,1774735839648,-500.0,0.00014313,2]
[419002065,1774735839660,-500.0,0.00014313,2]
[419002066,1774735839670,-500.0,0.00014313,2]
[419002067,1774735839681,-500.0,0.00014313,2]
[419002068,1774735839690,-500.0,0.00014313,2]
[419002069,1774735839700,-500.0,0.00014313,2]
[419002070,1774735839711,-150.0,0.00014313,2]
[419002071,1774735839721,-500.0,0.00014313,2]
[419002072,1774735839735,-500.0,0.00014313,2]
[419002073,1774735839747,-500.0,0.00014313,2]
[419002074,1774735839758,-500.0,0.00014313,2]
[419002075,1774735839768,-500.0,0.00014313,2]
[419002076,1774735839779,-150.0,0.00014313,2]
[419002077,1774735839791,-500.0,0.00014313,2]
[419002078,1774735839802,-500.0,0.00014313,2]
[419002079,1774735839814,-500.0,0.00014313,2]
[419002080,1774735839826,-179.99718921,0.00014313,2]
[419002081,1774735839837,-500.0,0.00014313,2]
[419002082,1774735839848,-500.0,0.00014313,2]
[419002083,1774735839859,-500.0,0.00014313,2]
[419002084,1774735839869,-500.0,0.00014313,2]
[419002085,1774735839882,-500.0,0.00014313,2]
[419002086,1774735839896,-500.0,0.00014313,2]
[419002087,1774735839909,-500.0,0.00014313,2]
[419002088,1774735839921,-500.0,0.00014313,2]
[419002089,1774735839932,-647.06402264,0.00014313,2]
[419002090,1774735839943,-500.0,0.00014313,2]
[419002091,1774735839954,-577.37301328,0.00014313,2]
[419002092,1774735839965,-500.0,0.00014313,2]
[419002093,1774735839976,-503.28066809,0.00014313,2]
[419002094,1774735839988,-500.0,0.00014313,2]
[419002095,1774735840000,-500.0,0.00014313,2]
[419002096,1774735840012,-489.0,0.00014313,2]
[419002097,1774735840022,-489.0,0.00014313,2]
[419002098,1774735840032,-500.0,0.00014313,2]
[419002099,1774735840044,-489.0,0.00014313,2]
[419002100,1774735840054,-500.0,0.00014313,2]
[419002101,1774735840065,-500.0,0.00014313,2]
[419002102,1774735840076,-489.0,0.00014313,2]
[419002103,1774735840087,-489.0,0.00014313,2]
[419002104,1774735840099,-489.0,0.00014313,2]
[419002105,1774735840111,-500.0,0.00014313,2]
[419002106,1774735840123,-489.0,0.00014313,2]
[419002107,1774735840135,-489.0,0.00014313,2]
[419002108,1774735840146,-489.0,0.00014313,2]
[419002109,1774735840157,-489.0,0.00014313,2]
[419002110,1774735840168,-489.0,0.00014313,2]
[419002111,1774735840179,-500.0,0.00014313,2]
[419002112,1774735840190,-489.0,0.00014313,2]
[419002113,1774735840200,-489.0,0.00014313,2]
[419002115,1774735840212,-489.0,0.00014313,2]
[419002116,1774735840224,-489.0,0.00014313,2]
[419002117,1774735840235,-489.0,0.00014313,2]
[419002118,1774735840248,-489.0,0.00014313,2]
[419002119,1774735840259,-455.89445997,0.00014313,2]
[419002120,1774735840270,-489.0,0.00014313,2]
[419002121,1774735840281,-489.0,0.00014313,2]
[419002122,1774735840295,-489.0,0.00014313,2]
[419002123,1774735840305,-489.0,0.00014313,2]
[419002124,1774735840317,-489.0,0.00014313,2]
[419002125,1774735840327,-489.0,0.00014313,2]
[419002126,1774735840337,-503.30017584,0.00014313,2]
[419002127,1774735840348,-2170.08584154,0.00014438,2]
[419002128,1774735840359,-778.02521169,0.0001449,2]
[419002129,1774735840369,-3240.0,0.00014511,2]
[419002130,1774735840379,-1000.0,0.00014521,2]
[419002131,1774735840391,-507.33813259,0.00014521,2]
[419002132,1774735840401,-1000.0,0.00014521,2]
[419002133,1774735840411,-303.76947288,0.00014521,2]
[419002134,1774735840422,-1000.0,0.00014521,2]
[419002135,1774735840433,-500.92226367,0.00014521,2]
[419002136,1774735840443,-1000.0,0.00014521,2]
[419002137,1774735840454,-1000.0,0.00014521,2]
[419002138,1774735840464,-1000.85155912,0.00014521,2]
[419002139,1774735840475,-267.42294845,0.00014521,2]
[419002140,1774735840486,-499.89808897,0.00014585,2]
[419002141,1774735840498,-162.0,0.0001472,2]
[419002142,1774735840509,-2170.08584154,0.00014731,2]
[419002143,1774735840663,-778.02521169,0.00014795,2]
[419002144,1774735840675,-150.0521,0.000148,2]
[419002145,1774735840684,-235.30570927,0.000149,2]
[419002146,1774735840695,-2344.91861912,0.000149,2]
[419002147,1774735840704,-1479.68187339,0.000149,2]
[419002148,1774735840714,-300.0,0.00015,2]
[419002149,1774735840724,-2170.08584154,0.00015023,2]
[419002150,1774735840734,-1505.20312334,0.00015068,2]
[419002151,1774735840743,-1075.34860635,0.00015068,2]
[419002152,1774735840755,-1500.0,0.00015068,2]
[419002153,1774735840764,-579.19039319,0.00015068,2]
[419002154,1774735840773,-778.02521169,0.000151,2]
[419002155,1774735840784,-5630.37221752,0.000152,2]
[419002156,1774735840792,-433.0,0.00015208,2]
[419002157,1774735840802,-4722.0,0.00015222,2]
[419002158,1774735840811,-2170.08584154,0.00015315,2]
[419002159,1774735840820,-160.0,0.0001538,2]
[419002160,1774735840830,-160.0,0.0001538,2]
[419002161,1774735840839,-959.64475997,0.0001538,2]
[419002162,1774735840848,-350.0,0.00015387,4]
[419002163,1774735840858,-5536.0,0.00015401,2]
[419002164,1774735840868,-778.02521169,0.00015406,2]
[419002165,1774735840877,-2351.0,0.00015487,2]
[419002166,1774735840886,-2002.62847189,0.000155,3]
[419002167,1774735840896,-4000.0,0.00015507,2]
[419002168,1774735840906,-154.46961228,0.00015517,2]
[419002169,1774735840915,-5536.0,0.00015522,2]
[419002170,1774735840925,-2000.0,0.00015555,2]
[419002171,1774735840934,-656.0,0.00015582,2]
[419002172,1774735840944,-2170.08584154,0.00015608,2]
[419002173,1774735840954,-5536.0,0.00015615,2]
[419002174,1774735840964,-2000.0,0.00015616,2]
[419002175,1774735840975,-732.54446763,0.00015634,2]
[419002176,1774735840984,-338.460182,0.0001568,7]
[419002177,1774735840994,-196.989796,0.0001568,7]
[419002178,1774735841004,-211.581634,0.0001568,7]
[419002179,1774735841013,-778.02521169,0.00015711,2]
[419002180,1774735841023,-5536.0,0.00015726,2]
[419002181,1774735841032,-500.0,0.00015726,2]
[419002182,1774735841042,-5536.0,0.00015749,2]
[419002183,1774735841052,-250.0,0.00015753,2]
[419002184,1774735841061,-186.0,0.00015753,2]
[419002185,1774735841071,-5536.0,0.00015766,2]
[419002186,1774735841080,-440.0,0.00015781,2]
[419002187,1774735841090,-366.0,0.00015781,2]
[419002188,1774735841099,-656.0,0.00015847,2]
[419002189,1774735841108,-166.35931834,0.00015873,2]
[419002190,1774735841118,-656.0,0.00015886,2]
[419002191,1774735841127,-4000.0,0.00015895,2]
[419002193,1774735841137,-499.89808897,0.000159,2]
[419002195,1774735841146,-203047.38420107,0.000159,2]
[419002197,1774735841155,-2170.08584154,0.000159,2]
[419002199,1774735841164,-235.30570927,0.000159,2]
[419002200,1774735841174,-2344.91861912,0.000159,2]
[419002201,1774735841185,-1479.68187339,0.000159,2]
[419002203,1774735841194,-206.37595366,0.000159,2]
[419002204,1774735841204,-26398.1533218,0.00015925,2]
[419002205,1774735841214,-372.756356,0.00015957,7]
[419002206,1774735841223,-5000.0,0.0001596,2]